Cogmind - Beta 12 @@@ ROGUE MODE // 2023.03.08 @ 12:00:19 Player: Red Box Result: Destroyed by D-53 Grenadier with Mini Grenade Launcher Performance ------------- Evolutions (1) 500 Regions Visited (4) 800 Robots Destroyed (58) 290 Value Destroyed (1047) 1047 Prototype IDs (9) 180 Alien Tech Used (0) 0 Bonus (-65) -65 TOTAL SCORE: 2752 Bonus ------- Follower Combat Kills 98 Friendly Fire -163 Cogmind --------- Core Integrity 0/400 Matter 259/300 Energy 80/100 System Corruption 3% Temperature Cool (0) Movement Rolling (95) Ox1 Location -9/Mines Parts ------- > --- POWER (1) -------- (None) > --- PROPULSION (2) --- Wheel Wheel > --- UTILITY (4) ------ Large Storage Unit Improved Targeting Computer > --- WEAPON (2) ------- Advanced Beam Rifle Improved Light Cannon > --- INVENTORY (15) --- Wheel Wheel Wheel Compact Wheel Recoil Stabilizer Advanced Beam Rifle Rocket Launcher Maul Peak State ------------ > --- POWER ------------ Light Angular Momentum Engine > --- PROPULSION ------- Wheel Wheel > --- UTILITY ---------- Improved Heat Sink Large Storage Unit Improved Targeting Computer Hardened Light Armor Plating > --- WEAPON ----------- Advanced Beam Cannon Advanced Beam Cannon > --- INVENTORY -------- Improved Ion Engine Wheel Wheel Wheel Wheel Compact Wheel Improved EM Shotgun Improved EM Shotgun Advanced Beam Cannon Advanced Beam Cannon Improved Light Cannon Rocket Launcher Maul Signal Generator [Rating: 24] Favorites ----------- Power Ion Engine Engine Ion Engine Propulsion Wheel Leg Aluminum Leg Wheel Wheel Utility Large Storage Unit Device Improved Terrain Scanner Storage Large Storage Unit Processor Improved Targeting Computer Protection Light Armor Plating Weapon Advanced Beam Cannon Energy Gun Small Laser Energy Cannon Advanced Beam Cannon Ballistic Gun Autogun Ballistic Cannon Improved Light Cannon Launcher Rocket Launcher Special Weapon Mining Laser Impact Weapon Maul Build | -11 -10 -10 -9 -9 ------- Run | Jun Mat Min Mat Min Slots Evolved 2 | . . . 2 . Power . | . . . . . Propulsion . | . . . . . Utility 2 | . . . 2 . Weapon . | . . . . . Parts Attached 56 | 11 6 1 28 10 Power 7 | 1 . 1 5 . Engine 7 | 1 . 1 5 . Core . | . . . . . Reactor . | . . . . . Propulsion 11 | 5 1 . 3 2 Treads . | . . . . . Leg 2 | 2 . . . . Wheel 9 | 3 1 . 3 2 Hover . | . . . . . Flight . | . . . . . Utility 13 | 3 1 . 8 1 Device 5 | 2 . . 3 . Storage 2 | 1 1 . . . Processor 2 | . . . 2 . Hackware . | . . . . . Protection 4 | . . . 3 1 Artifact . | . . . . . Weapon 25 | 2 4 . 12 7 Energy Gun 11 | 2 1 . 4 4 Energy Cannon 7 | . . . 7 . Ballistic Gun 2 | . 2 . . . Ballistic Cannon 1 | . . . . 1 Launcher 1 | . . . 1 . Special Weapon 1 | . 1 . . . Impact Weapon 2 | . . . . 2 Slashing Weapon . | . . . . . Piercing Weapon . | . . . . . Special Melee Weapon . | . . . . . Unidentified Prototypes 3 | . . . 3 . Parts Lost 14 | . 1 . 5 8 Power 3 | . . . 2 1 Propulsion 4 | . 1 . 1 2 Utility 4 | . . . 2 2 Weapon 3 | . . . . 3 Highest Loss Streak 8 | . 1 . 1 8 To Critical Strikes . | . . . . . Average Slot Usage (%) 98 | . 98 100 99 69 Engine 12 | . 14 14 11 3 Wheel 24 | . 26 28 21 15 Device 12 | . 14 14 10 6 Storage 12 | . 14 14 11 11 Processor 5 | . . . 10 11 Protection 5 | . . . 10 4 Energy Gun 9 | . 24 . 5 12 Energy Cannon 6 | . . . 14 . Ballistic Gun 7 | . 2 28 2 . Naked Turns . | . . . . . Heaviest Build 43 | 14 32 34 43 39 Greatest Support 20 | 20 20 20 20 20 Greatest Overweight (x) 3 | 1 2 1 3 3 Average Overweight (x) 1 | . 1 1 1 1 Largest Inventory Capacity 15 | 8 15 15 15 15 Average Capacity 14 | 7 14 15 15 15 Most Carried 15 | 8 15 15 15 14 Average Carried 13 | 6 11 14 14 12 Final Capacity 15 | 8 15 15 15 15 Final Carried 15 | 8 15 15 14 8 Class Distribution -------------------- 72% | Mutant 27% | Scavenger-Mutant Dominant Class ---------------- Mutant | -10/Materials Mutant | -10/Mines Mutant | -9/Materials Mutant | -9/Mines Resources | -11 -10 -10 -9 -9 ----------- Run | Jun Mat Min Mat Min Matter Collected 1142 | 310 40 86 648 58 Remotely . | . . . . . Salvage Created 1769 | 253 210 80 1157 69 Parts 130 | 25 19 8 78 . Haulers Intercepted 2 | . . . 2 . Recyclers Shooed . | . . . . . Parts Field Recycled . | . . . . . Retrieved Matter . | . . . . . Parts Self-Destructed . | . . . . . Prevented . | . . . . . Kills | -11 -10 -10 -9 -9 ------- Run | Jun Mat Min Mat Min Combat Hostiles Destroyed 38 | . 11 5 17 5 Guns 20 | . 11 5 1 3 Cannons 17 | . . . 15 2 Classes Destroyed 12 | 3 3 . 5 1 Worker 3 | 1 . . 2 . Builder 3 | . . . 3 . Tunneler 8 | 8 . . . . Hauler 2 | . . . 2 . Recycler 1 | 1 . . . . Operator 1 | . . . 1 . Watcher 6 | . 1 . 5 . Swarmer 16 | . 9 5 2 . Grunt 9 | . 2 . 7 . Duelist 1 | . . . 1 . Sentry 7 | . . . 7 . Assembled 5 | . . . . 5 Thug 1 | . . . 1 . Best Kill Streak 8 | 4 6 3 8 3 Combat Bots Only 6 | . 6 3 3 3 Max Kills in Single Turn 2 | 1 1 1 2 1 Gunslinging . | . . . . . Exploded . | . . . . . Melee . | . . . . . Uniques/NPCs Destroyed . | . . . . . Combat | -11 -10 -10 -9 -9 -------- Run | Jun Mat Min Mat Min Damage Taken 2078 | . 256 48 955 819 Core 542 | . 84 17 149 292 Absorbed by Shields . | . . . . . Regen/Repaired (Parts) 33 | . . . 33 . Core Remaining (%) 79 | 100 . 59 . . Volleys Fired 130 | 15 34 7 62 12 Largest 2 | 2 2 2 2 2 Hottest 136 | 90 100 46 136 106 Shots Fired 247 | 30 62 14 123 18 Gun 144 | 30 56 14 33 11 Cannon 95 | . . . 88 7 Launcher 2 | . . . 2 . Special 6 | . 6 . . . Kinetic 39 | . . 14 18 7 Thermal 184 | 30 62 . 88 4 Explosive 2 | . . . 2 . Electromagnetic 22 | . . . 15 7 Robot Hit Streak 13 | 5 9 6 13 11 Robot Miss Streak 5 | 3 4 2 5 1 Penetration Max . | . . . . . Secondary Targets 2 | . 2 . . . Max Gunslinging Chain 1 | . 1 . . . Shots Hit Robots 155 | 18 29 10 83 15 Core Hits 81 | 11 14 5 39 12 Critical Kills . | . . . . . Critical Parts Destroyed . | . . . . . Critical Strikes 3 | . 3 . . . Burn 3 | . 3 . . . Melee Attacks 3 | . . . . 3 Impact 3 | . . . . 3 Slashing . | . . . . . Piercing . | . . . . . Sneak Attacks . | . . . . . Combat Hostiles . | . . . . . Follow-up Attacks . | . . . . . Damage Inflicted 3110 | 227 343 162 2075 303 Guns 1386 | 227 343 162 471 183 Cannons 1481 | . . . 1361 120 Explosions 243 | . . . 243 . Melee . | . . . . . Ramming . | . . . . . Kinetic 506 | . . 162 224 120 Thermal 1991 | 227 343 . 1361 60 Explosive 243 | . . . 243 . Electromagnetic 370 | . . . 247 123 Impact . | . . . . . Slashing . | . . . . . Piercing . | . . . . . Highest Corruption 3 | . . . 3 3 Average Corruption 3 | . . . 3 3 Corruption Purged . | . . . . . Corruption Blocked . | . . . . . Effects 36 | . . . 34 2 Message Errors 7 | . . . 6 1 Matter Fused 13 | . . . 13 . Heat Flow Errors 5 | . . . 5 . Energy Discharges 2 | . . . 1 1 Parts Rejected 1 | . . . 1 . Parts Fused 1 | . . . 1 . Data Loss (minor) 1 | . . . 1 . Data Loss (major) 2 | . . . 2 . Misfires 2 | . . . 2 . Weapon Failures 2 | . . . 2 . Overload Shots . | . . . . . Overflow Damage 19 | . . . 19 . Projectiles 19 | . . . 19 . Explosions . | . . . . . Melee . | . . . . . Knockbacks . | . . . . . Impact . | . . . . . Kinetic . | . . . . . Secondary . | . . . . . Self-Inflicted Damage . | . . . . . Shots . | . . . . . Rammed . | . . . . . Targets Rammed . | . . . . . Kicked . | . . . . . Crushed . | . . . . . Highest Temperature 382 | 90 382 12 315 15 Average Temperature 84 | 34 110 6 86 9 Received Heat Transfer 411 | . 42 . 369 . Effects 4 | . 4 . . . Energy Bleed 1 | . 1 . . . Interference 3 | . 3 . . . Siege Activations . | . . . . . Robots Corrupted 1 | . . . 1 . Combat Hostiles 1 | . . . 1 . Parts Fried 1 | . . . 1 . Impact Corruptions . | . . . . . Robots Melted . | . . . . . Combat Hostiles . | . . . . . Parts Melted 12 | 2 6 . 4 . Heat Transferred 4152 | 571 1139 . 2331 111 Parts Sabotaged . | . . . . . Parts Stolen . | . . . . . Parts Stripped . | . . . . . Power Chain Reactions . | . . . . . Missiles Intercepted . | . . . . . Alert | -11 -10 -10 -9 -9 ------- Run | Jun Mat Min Mat Min Peak Influence 361 | 50 349 158 361 22 Initial 38 | . 32 38 . 22 Average 141 | 22 162 77 183 9 Maximum Alert Level 1 | . 1 . 1 . Low Security (%) 71 | 100 71 100 52 100 Level 1 28 | . 28 . 47 . Level 2 . | . . . . . Level 3 . | . . . . . Level 4 . | . . . . . Level 5 . | . . . . . High Security . | . . . . . Max Security . | . . . . . Squads Dispatched 1 | . . . 1 . Investigation . | . . . . . Extermination . | . . . . . Reinforcement 1 | . . . 1 . Assault . | . . . . . Garrison . | . . . . . Intercept . | . . . . . Searches Triggered . | . . . . . Construction Impeded 1 | . . . 1 . Haulers Reinforced . | . . . . . Active Scanning Responses . | . . . . . Cargo Convoy Interrupts . | . . . . . Stealth | -11 -10 -10 -9 -9 --------- Run | Jun Mat Min Mat Min Distress Signals 8 | . . . 8 . Communications Jammed . | . . . . . Distress Signals . | . . . . . Times Spotted 67 | . 18 6 33 10 Peak Tracking Total 8 | . 3 3 5 8 Tactical Retreats 4 | . 1 . 1 2 Traps | -11 -10 -10 -9 -9 ------- Run | Jun Mat Min Mat Min Traps Triggered . | . . . . . Indirectly . | . . . . . Trap Hack Attempts . | . . . . . Triggered . | . . . . . Disarmed . | . . . . . Reprogrammed . | . . . . . Reused . | . . . . . Traps Extracted . | . . . . . Installed . | . . . . . Triggered . | . . . . . Machines | -11 -10 -10 -9 -9 ---------- Run | Jun Mat Min Mat Min Machines Disabled 1 | . . . 1 . Max in Single Turn 1 | . . . 1 . Machines Repaired . | . . . . . Machines Sabotaged . | . . . . . Overloaded Fab Kills . | . . . . . Hacking | -11 -10 -10 -9 -9 --------- Run | Jun Mat Min Mat Min Machines Accessed 25 | . 10 . 15 . Terminals 18 | . 8 . 10 . Fabricators . | . . . . . Repair Stations 2 | . . . 2 . Recycling Units 4 | . 2 . 2 . Scanalyzers 1 | . . . 1 . Garrison Access . | . . . . . Total Hacks 77 | . 30 . 47 . Successful 53 | . 16 . 37 . Failed 23 | . 14 . 9 . Catastrophic 2 | . . . 2 . Database Lockouts 1 | . . . 1 . Manual 53 | . 25 . 28 . Terminals 57 | . 26 . 31 . Fabricators . | . . . . . Repair Stations 4 | . . . 4 . Recycling Units 10 | . 4 . 6 . Scanalyzers 6 | . . . 6 . Garrison Access . | . . . . . Terminal Hacks 18 | . 9 . 9 . Robot Schematic 1 | . 1 . . . Robot Analysis 8 | . 7 . 1 . Prototype ID Bank 3 | . . . 3 . Branch Access Points 1 | . . . 1 . Unreport Threat 1 | . . . 1 . Locate Traps 1 | . 1 . . . Recall Reinforcements 1 | . . . 1 . Hauler Manifests 1 | . . . 1 . Registered Prototypes 1 | . . . 1 . Fabricator Hacks . | . . . . . Repair Station Hacks 3 | . . . 3 . Scan Component 2 | . . . 2 . Repair 1 | . . . 1 . Recycling Unit Hacks 2 | . 1 . 1 . Report Inventory 1 | . 1 . . . Retrieve Components 1 | . . . 1 . Scanalyzer 6 | . . . 6 . Insert Component 2 | . . . 2 . Analyze 4 | . . . 4 . Garrison Access Hacks . | . . . . . Unauthorized Hacks 24 | . 6 . 18 . Terminals 19 | . 5 . 14 . Track 6 | . 2 . 4 . Assimilate 2 | . 1 . 1 . Botnet 9 | . 1 . 8 . Operators 2 | . 1 . 1 . Fabricators . | . . . . . Repair Stations . | . . . . . Recycling Units 5 | . 1 . 4 . Reject 2 | . 1 . 1 . Recyclers 1 | . . . 1 . Mask 2 | . . . 2 . Scanalyzers . | . . . . . Garrison Access . | . . . . . Data Cores Recovered 1 | . . . 1 . Used 1 | . . . 1 . Hacking Detections 24 | . 10 . 14 . Full Trace Events 1 | . 1 . . . Feedback Events . | . . . . . Feedback Blocked . | . . . . . Robot Schematics Acquired 1 | . 1 . . . Robots Built . | . . . . . Authchips . | . . . . . Time . | . . . . . Total Robot Build Rating . | . . . . . Part Schematics Acquired 2 | . . . 2 . Parts Built . | . . . . . Authchips . | . . . . . Time . | . . . . . Total Part Build Rating . | . . . . . Parts Repaired 1 | . . . 1 . Time 38 | . . . 38 . Parts Recycled . | . . . . . Recycled Matter . | . . . . . Retrieved Matter . | . . . . . Retrieved Components 10 | . . . 10 . Parts Scanalyzed 2 | . . . 2 . Part Schematics Acquired 2 | . . . 2 . Parts Damaged . | . . . . . Bothacking | -11 -10 -10 -9 -9 ------------ Run | Jun Mat Min Mat Min Used RIF Installer . | . . . . . Robots Hacked . | . . . . . Non-combat . | . . . . . Combat . | . . . . . Robot Hacks Applied . | . . . . . Relay Couplers Released . | . . . . . Fabnet Peak Effective % . | . . . . . Robots Rewired . | . . . . . Allies Hacked . | . . . . . Hacks Repelled . | . . . . . Allies | -11 -10 -10 -9 -9 -------- Run | Jun Mat Min Mat Min Total Allies 4 | . 1 2 1 . Largest Group 3 | . 1 3 3 1 Highest-Rated Group 58 | . 10 58 58 8 Highest-Rated Ally 31 | . 10 31 31 8 Total Orders 8 | . . 2 6 . STAY 4 | . . 1 3 . FOLLOW 4 | . . 1 3 . Ally Attacks 20 | . . . 20 . Total Damage 229 | . . . 229 . Kills 5 | . . . 5 . Allies Corrupted . | . . . . . Allies Melted . | . . . . . Intel | -11 -10 -10 -9 -9 ------- Run | Jun Mat Min Mat Min Robot Analysis Total 8 | . 7 . 1 . Derelict Logs Recovered 3 | . . 2 . 1 Drone Launches . | . . . . . Drone Recoveries . | . . . . . Exploration | -11 -10 -10 -9 -9 ------------- Run | Jun Mat Min Mat Min Turns Passed 3818 | 254 1032 743 1682 107 Spaces Moved 2842 | 160 727 681 1230 44 Core 16 | 16 . . . . Treads . | . . . . . Legs 41 | 41 . . . . Wheels 2785 | 103 727 681 1230 44 Hover . | . . . . . Flight . | . . . . . Fastest Speed 50 | 50 80 95 95 95 Average Speed 97 | 88 95 95 101 97 Slowest Speed 125 | 120 110 95 125 125 Overloaded Moves . | . . . . . Propulsion Burnouts . | . . . . . Robots Hopped . | . . . . . Cave-ins Triggered . | . . . . . Exploration Rate (%) 61 | 5 97 96 96 11 Regions Visited 4 Branch Regions 2 Pre-discovered Areas . | . . . . . Known Exits Taken 1 | . . . 1 . Unknown Exits Taken 3 | 1 1 1 . . Scrap Searched 1 | . . 1 . . Spaces Dug 9 | . 6 . . 3 Terrain Destroyed 19 | . 6 . 9 4 Melee 3 | . . . . 3 Projectile 7 | . 6 . . 1 AOE 9 | . . . 9 . Terrain Rammed . | . . . . . Walls Destroyed . | . . . . . Machines Disabled . | . . . . . Actions | -11 -10 -10 -9 -9 --------- Run | Jun Mat Min Mat Min Total 3628 | 242 991 768 1544 83 Wait 504 | 35 208 69 179 13 Move 2838 | 159 726 680 1229 44 Hop . | . . . . . Pick Up 50 | 13 12 5 20 . Fast Attach 20 | 8 . . 11 1 Attach 17 | 1 3 . 8 5 Detach 2 | 1 . . 1 . Swap 19 | 2 3 1 9 4 Drop 45 | 8 5 6 25 1 Fire 130 | 15 34 7 62 12 Melee 3 | . . . . 3 Ram . | . . . . . Kick . | . . . . . Crush . | . . . . . Escape Stasis . | . . . . . Rewire . | . . . . . Trap . | . . . . . Miscellaneous . | . . . . . Route ------- -11/Junkyard -10/Materials (discovered 5 exits: *Mat x3 / [*Min x2]) -10/Mines (discovered 2 exits: *Mat x2) -9/Materials (discovered 5 exits: [*Mat x3] / *Min / *Sto) -9/Mines History --------- Turn | Location | Event 17 | -11/Junkyard | Discovered new exit (range 14) 255 | -11/Junkyard | Entered Materials 303 | -10/Materials | Build established: Mutant 372 | -10/Materials | Discovered new exit (range 12) 607 | -10/Materials | Discovered new exit (range 16) 819 | -10/Materials | Discovered new exit (range 16) 955 | -10/Materials | Discovered new exit (range 15) 1032 | -10/Materials | Discovered new exit (range 6) 1287 | -10/Materials | Entered Mines 1287 | -10/Mines | Accompanied by 1 ally 1288 | -10/Mines | Met a Derelict testing a Signal Generator 1290 | -10/Mines | Found Signal Generator 1312 | -10/Mines | Met a Derelict bent on vengeance 1457 | -10/Mines | Learned location of 1 exit from Materials 1544 | -10/Mines | Found a hidden stash of uninstalled traps 1696 | -10/Mines | Learned Materials terminal intel 1701 | -10/Mines | Discovered new exit (range 3) 1771 | -10/Mines | Discovered new exit (range 3) 1777 | -10/Mines | Joined a pair of Derelicts in attacking an 0b10 outpost 2030 | -10/Mines | Entered Materials 2030 | -9/Materials | Accompanied by 3 allies 2030 | -9/Materials | Evolved 2 slots: Utility x2 2031 | -9/Materials | Identified exit to Mines 2032 | -9/Materials | Loaded intel: 12 terminal locations 2035 | -9/Materials | Led the pair of lost Derelicts to an unsafe place 2073 | -9/Materials | Build established: Scavenger-Mutant 2222 | -9/Materials | Discovered new exit (range 14) 2309 | -9/Materials | Central database locked down 2318 | -9/Materials | Identified exit to Storage 2792 | -9/Materials | Discovered new exit (range 15) 2917 | -9/Materials | Repaired Imp. Heat Sink 3300 | -9/Materials | Discovered new exit (range 16) 3430 | -9/Materials | Build established: Mutant 3510 | -9/Materials | Discovered new exit (range 14) 3712 | -9/Materials | Entered Mines 3712 | -9/Mines | Accompanied by 1 ally 3715 | -9/Mines | Assembled infested the area 3767 | -9/Mines | Core integrity fell below 50% 3777 | -9/Mines | Core integrity fell below 20% 3795 | -9/Mines | Learned Materials terminal intel 3812 | -9/Mines | Lost 8 parts (1p2n2u3w) 3819 | -9/Mines | Destroyed by D-53 Grenadier with Mini Grenade Launcher Last Messages --------------- 03749_ Imp. EM Shotgun destroyed. 03749_ Imp. Ion Engine destroyed. 03749_ Wheel destroyed. 03751_ Acquired Hrd. Light Armor Plating. 03761_ QQ&KIN 7DP=NVM6I5=U|IAR/>DAMFOOM&78ME4#2 03762_ Hrd. Light Armor Plating destroyed. 03768_ The unstable cave ceiling collapses. 03768_ Imp. EM Shotgun destroyed. 03771_ Imp. Heat Sink destroyed. 03775_ as-91207 destroyed. 03781_ Adv. Beam Rifle destroyed. 03781_ Wheel destroyed. 03782_ as-54934 destroyed. 03790_ as-36124 destroyed. 03794_ Acquired 22 matter. 03795_ Acquired derelict log, extracted data. Data stored: Materials terminal intel. 03796_ Acquired 1 matter. 03798_ Acquired 19 matter. 03819_ Dropped Signal Generator. Map ----- +----------------------------------------------------+ | ???????????????????????????????? | | ???????????????????????????????? | | ???????????????????????????????? | | ???????????????????????????????? | | ???????????????????????????????? | | ???????????????????????????????? | | ???????????????????????????????? | | ???????????????????????????????? | | ???????????????????????????????? | | ???????????????????????????????? | | ???????????????????????????????? | | ???????????????????????????????? | | ???????????????????????????????? | | ???????????????????#???????????? | | ??????????????????? #??????????? | | ??????????????????? ??????????? | | ??????????????????? #?????????? | | ??????????????????? #?????????? | | ??????????????????? #?????????? | | ??????????###?????? #?????????? | | ###########"##?????# #?????????? | | *%= % #?????# #?????????? | | ! % #?????# ######????? | | ##### #### #?????# #????? | | ????# #### ####### ####d#????? | | ????# !###" ## ## #??#@#????? | | ????#=%# ## # ### #????? | | ????# % ### #???? | | ????# ###?# #???? | | ????#?????# ## ##???? | | ??????????## "#### ####????? | | ???????????## #??####???????? | | ????????????## ##?????????????? | | ?????????????####??????????????? | | ???????????????????????????????? | | ???????????????????????????????? | | ???????????????????????????????? | | ???????????????????????????????? | | | | | | | | | | | | | | | | | | | | | | | | | +----------------------------------------------------+ Best States ------------- Heat Dissipation 42 Energy Generation 18 Energy Capacity 265 Matter Stores 300 Matter Capacity 300 Sight Range 16 Terrain Scan Range 16 Terrain Scan Density 10 Armor Coverage 150 Evasion (%) 55 Targeting Accuracy 6 Item Schematics ----------------- Imp. EM Shotgun | -9/Materials | Scanalyzed Maul | -9/Materials | Scanalyzed Robot Schematics ------------------ O-16 Technician | -10/Materials | Hacked Fabricated ------------ Nothing Alien Tech Used ----------------- None Achievements -------------- None Challenges ------------ None Game ------ Seed IonColdBeam Manual? 0 Play Time 00:40:17 Cumulative 542.2 hours Start 2023.03.08 @ 11:09:13 End 2023.03.08 @ 12:00:19 Sessions 1 Manual Loads 0 Difficulty Rogue Special Mode None Game No. 386 Rogue 386 Adventurer 0 Explorer 0 Win Type - Total 1 Types 1/0/0/0/0/0/0/0/0 Lore% 69 Gallery% 78 Achievement% 58 Wizard Run 0 Options --------- ASCII 0 Keyboard 0 Movement Mouse Keybinds 0 Fullscreen 1 Font 16/SmallcapsGlow Map View 75x55 Tactical HUD 1 Map Filters NONE Filters NONE Steam 1 RUN: 3e7f916c-b58b-4aea-bccd-e3c7c4220618